bitfinex/quotes_ETHUSD_20241225
["timestamp","ask_amount","ask_price","bid_price","bid_amount"]
[1735135707074,2.86665,3488.4,3487.4,1.20013581]
[1735135707377,0.7506,3488.3,3487.4,1.20013581]
[1735135707576,0.80386331,3488.3,3487.3,4.06766581]
[1735135707874,0.80386331,3488.3,3487.4,0.58670181]
[1735135708577,0.80386331,3488.3,3487.4,3.45414181]
[1735135708942,0.03347073,3488.2,3487.2,2.86762]
[1735135709167,0.03347073,3488.2,3486.8,1.20013581]
[1735135709168,0.7506,3488.1,3486.8,1.20013581]
[1735135709357,0.7506,3487.8,3486.8,1.20013581]
[1735135709882,0.05325751,3487.7,3486.8,1.20013581]
[1735135710087,0.05325751,3487.7,3486.8,3.77001845]
[1735135710451,0.7506,3487.8,3486.8,3.77001845]
[1735135710873,0.05349043,3487.7,3486.8,3.77001845]
[1735135711396,0.05349043,3487.7,3486.9,3.41787]
[1735135711690,0.05349043,3487.7,3487.2,2.86755]
[1735135711828,0.05349043,3487.6,3487.3,2.86753]
[1735135712028,0.7506,3487.8,3487.3,2.86753]
[1735135712260,0.05344967,3487.7,3487.3,2.86753]
[1735135712643,0.7506,3487.8,3487.3,3.209283]
[1735135712981,0.05148924,3487.7,3487.3,3.209283]
[1735135713180,0.7506,3487.8,3487.3,3.209283]
[1735135713380,0.05148924,3487.7,3487.3,3.209283]
[1735135713545,0.7506,3487.8,3487.3,3.209283]
[1735135713887,0.05148924,3487.7,3487.3,3.209283]
[1735135714184,0.7506,3487.8,3487.3,3.209283]
[1735135714383,0.7506,3487.8,3486.8,0.90207845]
[1735135714580,0.05148924,3487.7,3486.8,2.86793]
[1735135714952,0.8121,3487.6,3486.6,3.62231]
[1735135715288,0.05157082,3487.5,3486.7,2.86801]
[1735135715447,0.05157082,3487.5,3487.0,2.86773]
[1735135715656,0.05157082,3487.5,3487.1,2.86769]
[1735135720678,0.05157082,3487.5,3486.8,2.86793]
[1735135720865,3.0,3487.4,3486.4,1.20013581]
[1735135721214,1.1962848,3488.3,3486.4,1.20013581]
[1735135721215,2.86805,3486.7,3486.4,1.20013581]
[1735135721425,3.68959073,3486.6,3486.4,1.20013581]
[1735135721606,3.70777751,3486.5,3486.1,1.20013581]
[1735135721914,0.03347073,3486.4,3486.1,1.20013581]
[1735135722117,0.788,3486.3,3486.1,1.20013581]
[1735135722463,0.05154751,3486.2,3486.1,1.20013581]
[1735135722928,0.788,3486.3,3485.2,2.86922]
[1735135723071,0.05092378,3486.2,3485.6,2.8689]
[1735135723579,0.05092378,3486.2,3485.7,2.86885]
[1735135723775,0.788,3486.3,3485.7,2.86885]
[1735135723982,0.05092378,3486.2,3485.7,2.86885]
[1735135724203,0.05092378,3486.2,3485.8,0.286885]
[1735135724367,0.788,3486.3,3485.8,0.286885]
[1735135724585,0.05092378,3486.2,3485.8,0.286885]
[1735135724783,0.788,3486.3,3485.8,0.286885]
[1735135724983,4.1962848,3486.8,3485.8,0.31557051]
[1735135724984,0.05092378,3486.2,3485.8,0.31557051]
[1735135725186,1.1962848,3486.8,3486.0,2.8686]
[1735135725187,0.788,3486.6,3486.0,2.8686]
[1735135725383,0.05083048,3486.5,3486.1,0.31841667]
[1735135728594,0.05083048,3486.5,3486.1,3.18691667]
[1735135729730,0.788,3486.6,3486.1,3.18691667]
[1735135730117,0.05083048,3486.5,3486.1,3.18691667]
[1735135731814,0.05083048,3486.5,3486.1,0.31841667]
[1735135732137,0.788,3486.6,3485.9,2.86867]
[1735135732336,0.788,3486.6,3485.6,2.86887]
[1735135732533,0.05083048,3486.5,3485.7,2.86883]
[1735135733116,0.7686,3486.4,3485.3,0.42617929]
[1735135733323,0.7686,3486.2,3485.3,3.29533929]
[1735135733485,0.7686,3486.2,3485.4,0.5057448]
[1735135733836,0.05088294,3486.1,3485.4,0.5057448]
[1735135735314,0.08435367,3486.1,3485.4,0.5057448]
[1735135735510,0.05088294,3486.1,3485.4,0.5057448]
[1735135737044,0.05088294,3486.1,3485.5,2.86902]
[1735135737417,0.05088294,3486.1,3485.3,2.86917]
[1735135737623,0.05088294,3486.1,3485.4,2.86909]
[1735135739875,0.05088294,3486.1,3485.2,0.55]
[1735135740171,0.05088294,3486.1,3485.6,2.86892]
[1735135740334,0.05088294,3486.1,3485.7,0.286892]
[1735135740537,0.05088294,3486.1,3485.8,2.86877]
[1735135740743,0.7686,3486.2,3485.8,2.86877]
[1735135741267,0.04985686,3486.1,3485.8,2.86877]
[1735135741655,0.7686,3486.2,3485.8,2.86877]
[1735135741857,0.04985686,3486.1,3485.8,2.86877]
[1735135742059,0.7686,3486.2,3485.9,0.286877]
[1735135742361,0.04985686,3486.1,3485.9,0.286877]
[1735135742772,0.7686,3486.2,3485.9,0.286877]
[1735135742940,0.04985686,3486.0,3485.6,2.86893]
[1735135743137,0.7686,3486.2,3485.6,2.86893]
[1735135743340,0.04985686,3485.9,3485.6,2.86893]
[1735135743537,0.03347073,3486.1,3485.3,2.86917]
[1735135743737,0.7686,3486.2,3485.4,0.34311429]
[1735135744238,0.04985686,3486.1,3485.4,0.34311429]
[1735135744885,0.8265,3486.0,3485.1,0.56197293]
[1735135745131,0.8265,3486.0,3485.3,2.86912]
[1735135745287,0.04957109,3485.9,3485.3,2.86912]
[1735135746014,0.04957109,3485.9,3485.6,2.86894]
[1735135746238,0.8265,3486.0,3485.6,2.86894]
[1735135746381,0.04957109,3485.9,3485.7,0.286894]
[1735135746577,0.8265,3486.0,3485.7,0.286894]
[1735135746907,0.04953026,3485.9,3485.7,0.286894]
[1735135747448,0.04953026,3485.9,3485.7,3.155744]
[1735135747641,0.04953026,3485.9,3485.7,1.073794]
[1735135747781,0.7519,3487.0,3485.7,0.7869]
[1735135747981,0.04958859,3486.9,3485.8,0.57868326]
[1735135748209,0.04958859,3486.9,3486.4,2.86821]
[1735135750481,0.04958859,3486.9,3486.1,0.02868]
[1735135750683,0.04958859,3486.9,3486.5,2.86814]
[1735135750930,0.04958859,3486.9,3486.8,2.86795]
[1735135751278,1.9481848,3487.7,3487.2,2.86762]
[1735135751679,0.05033506,3487.6,3487.2,2.86762]
[1735135751983,0.05033506,3487.6,3487.0,2.86776]
[1735135752188,0.05033506,3487.6,3486.7,0.55]
[1735135752386,0.05033506,3487.6,3486.9,0.55]
[1735135752608,0.05033506,3487.6,3486.9,2.86786]
[1735135754223,0.05033506,3487.6,3487.0,2.86777]
[1735135754421,0.05033506,3487.6,3486.7,0.5786762]
[1735135754606,0.7519,3488.0,3487.6,2.86729]
[1735135754808,0.05111624,3487.9,3487.6,2.86729]
[1735135756335,0.7519,3487.8,3486.7,0.55]
[1735135756503,0.7519,3487.8,3487.2,2.86762]
[1735135756709,0.05126195,3487.7,3487.0,0.55]
[1735135757005,0.7519,3487.8,3487.0,0.55]
[1735135757213,0.7519,3487.8,3487.4,2.86744]
[1735135757426,0.05126195,3487.7,3487.4,2.86744]
[1735135757733,0.7519,3487.8,3487.4,3.154184]
[1735135757955,0.05126195,3487.6,3487.4,3.154184]
[1735135758089,0.7519,3487.8,3487.4,3.154184]
[1735135758293,0.7519,3487.8,3487.4,2.86744]
[1735135758494,0.05126195,3487.7,3487.4,2.86744]
[1735135758897,0.7519,3487.8,3487.4,2.86744]
[1735135759097,0.05126195,3487.6,3487.4,2.86744]
[1735135759297,0.7519,3487.8,3487.4,2.86744]
[1735135759690,0.05126195,3487.7,3487.4,2.86744]
[1735135760340,0.7519,3487.8,3487.4,2.86744]
[1735135760570,0.05126195,3487.6,3487.4,2.86744]
[1735135760778,0.7519,3487.8,3487.4,2.86744]
[1735135761145,0.05126195,3487.7,3487.4,2.86744]
[1735135761755,0.7519,3487.8,3487.4,2.86744]
[1735135761958,0.05098861,3487.6,3487.4,2.86744]
[1735135762256,0.05098861,3487.5,3487.4,2.86744]
[1735135762444,0.7519,3487.8,3487.4,2.86744]
[1735135762641,0.05098861,3487.7,3487.1,2.86764]
[1735135762995,0.8089,3487.6,3487.0,2.86778]
[1735135763457,0.05098861,3487.5,3486.6,0.365504]
[1735135763657,0.8089,3487.6,3486.9,2.86782]
[1735135763987,0.8089,3487.6,3486.7,0.4031254]
[1735135764169,0.8089,3487.6,3486.3,0.55]
[1735135764374,0.05121588,3487.5,3486.4,0.02867701]
[1735135764577,0.05121588,3487.5,3486.7,2.86798]
[1735135768412,0.05121588,3487.5,3486.4,3.0]
[1735135768617,0.05121588,3487.5,3486.8,2.86794]
[1735135769187,0.8089,3487.4,3486.8,2.86794]
[1735135769514,0.05105855,3487.3,3486.8,2.86794]
[1735135770422,0.05105855,3487.3,3486.8,3.154734]
[1735135771351,0.05105855,3487.3,3486.9,2.86786]
[1735135775890,0.05105855,3487.3,3487.0,2.86778]
[1735135776429,0.05087204,3487.2,3487.0,2.86778]
[1735135776579,0.813,3487.7,3487.0,2.86778]
[1735135776782,0.05087204,3487.6,3487.0,2.86778]
[1735135776976,0.05087204,3487.6,3487.0,0.3183251]
[1735135777198,0.05087204,3487.6,3487.3,2.86754]
[1735135777528,0.05087204,3487.6,3487.3,2.86747]
[1735135778180,0.05087204,3487.6,3487.2,2.86763]
[1735135778376,0.05087204,3487.6,3487.1,0.02867373]
[1735135778581,0.05087204,3487.6,3487.3,2.86747]
[1735135778922,0.05087204,3487.6,3487.4,0.28961437]
[1735135779577,0.05087204,3487.6,3487.4,3.15707437]
[1735135780127,0.813,3487.9,3487.4,3.15707437]
[1735135780629,0.05100027,3487.8,3487.4,3.15707437]
[1735135781332,0.05100027,3487.8,3487.4,0.28961437]
[1735135781629,0.05100027,3487.8,3487.5,0.31571644]
[1735135781935,0.813,3488.2,3487.7,2.86721]
[1735135782831,0.813,3488.2,3487.9,2.86698]
[1735135783714,1.1962848,3488.5,3487.9,2.86698]
[1735135783715,0.813,3488.5,3487.9,2.86698]
[1735135785739,0.03347073,3488.4,3487.7,2.86718]
[1735135786634,0.813,3488.5,3487.4,0.55]
[1735135786833,2.0092848,3488.5,3487.5,0.19312124]
[1735135787043,0.03347073,3488.4,3487.6,2.8673]
[1735135787329,0.03347073,3488.4,3487.5,0.19312124]
[1735135788121,0.03347073,3488.4,3487.8,2.86712]
[1735135788305,2.0092848,3488.5,3487.8,2.86712]
[1735135789721,2.0092848,3488.5,3487.3,0.8203]
[1735135790043,1.1962848,3488.5,3488.4,2.86664]
[1735135790275,1.1962848,3488.5,3488.4,3.62754]
[1735135790545,1.1962848,3488.5,3488.4,4.276976]
[1735135791305,1.24626679,3488.5,3488.4,4.276976]
[1735135791535,0.04998199,3488.5,3488.4,4.276976]
[1735135791936,1.38749308,3489.1,3488.5,2.86656]
[1735135792136,1.38749308,3489.1,3488.9,2.86622]
[1735135792994,1.1962848,3489.4,3489.0,2.86615]
[1735135793245,1.1962848,3489.4,3488.9,0.286622]
[1735135793445,1.1962848,3489.4,3489.3,2.8659]
[1735135794924,0.7816,3490.1,3489.5,2.86574]
[1735135794925,1.1962848,3490.0,3489.5,2.86574]
[1735135795900,1.1962848,3490.0,3489.5,3.62664]
[1735135796713,1.1962848,3490.2,3489.5,3.62664]
[1735135797452,0.7816,3489.7,3489.1,0.7609]
[1735135797615,0.11236046,3489.6,3489.1,2.86599]
[1735135797852,0.0631026,3489.6,3489.2,2.86597]
[1735135799171,0.0631026,3489.6,3489.1,0.42153753]
[1735135799571,0.04925786,3489.5,3489.2,2.86596]
[1735135799743,0.0631026,3489.6,3489.2,2.86596]
[1735135800304,0.0631026,3489.6,3489.0,2.86613]
[1735135800439,0.04925786,3489.5,3489.0,2.86613]
[1735135800638,0.03925786,3489.5,3489.0,2.86613]
[1735135800871,0.03925786,3489.5,3489.1,0.42155153]
[1735135801056,0.0631026,3489.6,3489.1,2.86604]
[1735135802604,0.04892453,3489.5,3489.1,2.86604]
[1735135802956,0.04892453,3489.5,3489.0,0.55]
[1735135803169,0.04892453,3489.5,3489.3,2.86584]
[1735135803347,0.0631026,3489.6,3489.3,2.86584]
[1735135803542,0.0631026,3489.6,3489.4,0.286584]
[1735135803762,0.0631026,3489.6,3489.4,3.152394]
[1735135811407,0.0631026,3489.6,3489.5,2.86574]
[1735135812718,0.0631026,3489.6,3489.5,3.67924]
[1735135816028,0.0631026,3489.6,3489.5,2.86574]
[1735135816189,0.0631026,3489.6,3489.5,3.4675634]
[1735135816828,0.0631026,3489.6,3489.5,0.6018234]
[1735135816996,0.0631026,3489.6,3489.4,0.286584]
[1735135817408,0.0631026,3489.6,3489.3,2.86587]
[1735135818228,0.0631026,3489.6,3489.4,2.86581]
[1735135818931,0.0631026,3489.6,3489.1,2.866]
[1735135819130,0.0631026,3489.6,3488.3,2.73107799]
[1735135819131,0.7571,3489.5,3488.4,0.8135]
[1735135819432,0.7571,3489.5,3488.8,3.0]
[1735135819776,0.04938432,3489.4,3488.7,2.86638]
[1735135821977,0.04938432,3489.4,3488.8,0.37133722]
[1735135822177,0.04938432,3489.4,3489.3,2.8659]
[1735135822398,0.0631026,3489.6,3489.5,2.86574]
[1735135822616,0.0631026,3489.6,3489.5,3.68189153]
[1735135822815,0.0631026,3489.6,3489.5,3.65324]
[1735135824990,0.0631026,3489.6,3489.5,2.86574]
[1735135825223,0.0631026,3489.6,3489.5,3.517654]
[1735135827719,0.0631026,3489.6,3489.5,3.5463052]
[1735135828123,0.0631026,3489.6,3489.5,3.517654]
[1735135831445,0.0631026,3489.6,3489.5,6.517654]
[1735135833070,0.0631026,3489.6,3489.5,3.517654]
[1735135833236,0.0631026,3489.6,3489.5,2.86574]
[1735135834066,0.0631026,3489.6,3489.5,3.61614]
[1735135834271,0.0631026,3489.6,3489.5,4.16614]
[1735135834416,0.0631026,3489.6,3489.5,7.16614]
[1735135837878,0.0631026,3489.6,3489.5,2.86574]
[1735135838167,0.0631026,3489.6,3489.5,3.85681936]
[1735135838776,0.0631026,3489.6,3489.5,4.36251488]
[1735135839589,0.0631026,3489.6,3489.5,3.92143552]
[1735135839923,0.0631026,3489.6,3489.5,6.92143552]
[1735135840675,0.0631026,3489.6,3489.5,7.73913552]
[1735135842084,0.0631026,3489.6,3489.5,10.2183229]
[1735135844182,0.0631026,3489.6,3489.5,9.4006229]
[1735135844850,0.0631026,3489.6,3489.5,6.92143552]
[1735135845031,0.0631026,3489.6,3489.5,6.37143552]
[1735135845236,0.0631026,3489.6,3489.5,6.92143552]
[1735135848150,0.0631026,3489.6,3489.5,9.39975647]
[1735135849339,0.0631026,3489.6,3489.5,7.9127639]
[1735135852199,0.0631026,3489.6,3489.5,9.3997877]
[1735135854290,0.0631026,3489.6,3489.5,10.59992351]
[1735135856054,0.0631026,3489.6,3489.5,9.3997877]
[1735135857517,0.0631026,3489.6,3489.5,7.9127639]
[1735135858975,0.0631026,3489.6,3489.5,6.92143552]
[1735135860706,0.0631026,3489.6,3489.5,8.40840512]
[1735135862386,0.0631026,3489.6,3489.5,6.92143552]
[1735135863322,0.0631026,3489.6,3489.5,6.37143552]
[1735135863470,0.0631026,3489.6,3489.5,7.36367203]
[1735135864777,0.0631026,3489.6,3489.5,8.85212996]
[1735135867527,0.8677026,3489.6,3489.5,5.34643444]
[1735135868034,0.8677026,3489.6,3489.5,2.48069444]
[1735135868380,0.0631026,3489.6,3489.5,5.34643444]
[1735135868581,0.0631026,3489.6,3489.5,5.3750887]
[1735135869013,0.0631026,3489.6,3489.5,5.34643444]
[1735135869319,0.0631026,3489.6,3489.5,6.36036866]
[1735135869471,1.42897886,3489.6,3489.5,3.87967422]
[1735135869676,0.8046,3489.5,3488.9,4.06634581]
[1735135869974,0.8046,3489.5,3489.0,2.86613]
[1735135870221,0.07442579,3489.4,3489.1,0.83435912]
[1735135870526,1.42897886,3489.6,3489.3,5.8659]
[1735135870727,1.42897886,3489.6,3489.5,2.86574]
[1735135871227,0.8677026,3489.6,3489.5,2.86574]
[1735135871429,0.8677026,3489.6,3489.2,0.49005949]
[1735135871430,0.8677026,3489.6,3489.2,2.86593]
[1735135871611,0.8677026,3489.6,3489.0,2.86607]
[1735135871925,0.8677026,3489.6,3488.8,2.86631]
[1735135872228,0.8677026,3489.6,3488.9,3.61546476]
[1735135872840,0.8677026,3489.6,3489.0,2.86615]
[1735135873607,0.8677026,3489.6,3489.1,2.86604]
[1735135874280,2.61677542,3489.5,3489.1,2.86604]
[1735135875623,2.0709605,3489.6,3489.1,2.86604]
[1735135876328,2.0709605,3489.6,3489.2,2.86598]
[1735135876480,1.2663605,3489.6,3489.5,2.86574]
[1735135877329,0.0631026,3489.6,3489.5,2.86574]
[1735135877823,0.0631026,3489.6,3489.5,5.86574]
[1735135878007,0.0631026,3489.6,3489.5,7.22144]
[1735135878327,0.0631026,3489.6,3489.5,8.230182]
[1735135878680,1.20201849,3490.2,3490.1,2.86524]
[1735135878981,8.49e-06,3490.2,3490.1,9.95201799]
[1735135879180,8.49e-06,3490.2,3490.1,11.23662661]
[1735135879810,2.3925696,3490.6,3490.5,2.86491]
[1735135880018,9.6e-06,3490.6,3490.5,9.95168799]
[1735135880221,0.06049079,3490.6,3490.5,9.95168799]
[1735135880430,0.06048119,3490.6,3490.5,9.95168799]
[1735135880764,0.06048119,3490.6,3490.5,11.23336479]
[1735135880931,0.8046096,3491.5,3491.1,2.86434]
[1735135881131,0.06048119,3491.4,3491.1,2.86434]
[1735135881865,0.06048119,3491.4,3490.8,2.86462]
[1735135882024,0.8046,3491.5,3490.5,4.95982058]
[1735135882212,0.8046,3491.5,3490.5,6.54305378]
[1735135882656,0.06104075,3491.4,3490.7,2.86474]
[1735135885415,0.06104075,3491.4,3490.2,3.55]
[1735135885757,0.06104075,3491.4,3490.8,2.86465]
[1735135887167,0.06104075,3491.4,3490.2,3.55]
[1735135887311,0.06104075,3491.4,3490.3,1.219242]
[1735135887516,0.06104075,3491.4,3490.4,0.55]
[1735135888258,0.06104075,3491.4,3490.5,2.86491]
[1735135888435,0.06104075,3491.4,3490.6,2.86479]
[1735135890029,0.06104075,3491.4,3490.8,2.86465]
[1735135890345,0.06104075,3491.4,3490.4,0.55]
[1735135890530,0.06104075,3491.4,3491.1,2.86442]
[1735135890962,0.06104075,3491.4,3491.2,2.86434]
[1735135892183,0.06104075,3491.4,3491.3,2.86426]
[1735135892393,1.19884052,3491.8,3491.3,2.86426]
[1735135892394,0.8063,3491.8,3491.3,2.86426]
[1735135892540,0.8063,3491.8,3491.4,0.02863868]
[1735135892541,0.06171702,3491.7,3491.4,0.02863868]
[1735135893590,0.06171702,3491.7,3491.3,2.86426]
[1735135893793,0.06171702,3491.7,3490.9,3.55]
[1735135894096,0.06171702,3491.7,3489.7,2.96802347]
[1735135894097,0.8063,3491.6,3490.6,2.86476]
[1735135894383,0.06180443,3491.5,3490.6,2.86476]
[1735135894986,0.8063,3491.4,3490.6,2.86476]
[1735135895186,0.06180443,3491.3,3490.7,2.86474]
[1735135895358,0.8063,3491.4,3490.7,2.86474]
[1735135895556,0.06180443,3491.3,3490.7,2.86474]
[1735135895788,0.06180443,3491.3,3490.5,2.86489]
[1735135896088,0.06180443,3491.3,3490.6,2.86479]
[1735135896288,0.06180443,3491.3,3490.7,2.86472]
[1735135897073,0.8063,3491.4,3490.7,2.86472]
[1735135897386,0.06180443,3491.3,3490.5,3.20618927]
[1735135897558,0.06180443,3491.3,3490.8,2.86462]
[1735135898144,0.8063,3491.4,3490.8,2.86462]
[1735135898363,0.06180443,3491.3,3490.8,2.86462]
[1735135903076,0.06180443,3491.3,3490.6,0.85519263]
[1735135903319,0.06180443,3491.3,3490.8,2.86464]
[1735135903602,0.0613211,3491.2,3490.8,2.86464]
[1735135903805,0.8063,3491.4,3490.8,2.86464]
[1735135903954,0.0613211,3491.3,3490.8,2.86464]
[1735135905510,0.0613211,3491.3,3490.6,0.85519263]
[1735135905899,0.8063,3491.4,3490.8,2.86467]
[1735135907000,0.06137936,3491.3,3490.8,2.86467]
[1735135909216,0.06137936,3491.3,3490.9,2.86458]
[1735135910124,0.06137936,3491.3,3491.0,2.86449]
[1735135910476,0.06137936,3491.3,3491.1,2.86441]
[1735135910677,0.06137936,3491.3,3491.1,3.150851]
[1735135910917,0.8063,3491.4,3491.1,3.150851]
[1735135911128,0.8063,3491.4,3491.1,0.286441]
[1735135911287,0.06047936,3491.3,3490.9,2.86454]
[1735135911485,0.8063,3491.4,3490.9,2.86454]
[1735135911807,0.06047936,3491.3,3490.9,2.86454]
[1735135912125,0.06047936,3491.3,3490.6,3.71997263]
[1735135912305,0.06047936,3491.3,3490.7,2.86474]
[1735135912628,0.8063,3491.4,3490.7,2.86474]
[1735135912629,0.06047936,3491.2,3490.7,3.59438276]
[1735135912923,0.03347073,3491.3,3490.6,0.85519263]
[1735135913217,0.7867,3491.0,3490.5,2.86489]
[1735135913416,0.06043275,3490.9,3490.5,2.86489]
[1735135913727,0.06043275,3490.9,3490.7,2.86474]
[1735135913873,0.06043275,3490.9,3490.8,2.86467]
[1735135914072,2.8638,3491.9,3490.9,2.86459]
[1735135914073,0.7867,3491.3,3490.9,2.86459]
[1735135914391,0.06028707,3491.2,3490.9,2.86459]
[1735135914608,0.7867,3491.3,3490.9,2.86459]
[1735135914780,0.0603337,3491.2,3490.9,2.86459]
[1735135915122,0.7867,3492.0,3491.1,2.86442]
[1735135915424,0.7867,3491.8,3491.1,2.86442]
[1735135915718,0.06036866,3491.7,3491.1,2.86442]
[1735135916218,0.06036866,3491.7,3490.7,2.86469]
[1735135916423,0.06036866,3491.7,3490.8,0.55]
[1735135916628,0.06036866,3491.7,3491.1,2.8644]
[1735135918230,0.06036866,3491.7,3490.7,0.55]
[1735135918410,0.7867,3491.6,3490.8,2.8646]
[1735135918723,0.0604619,3491.5,3490.8,2.8646]
[1735135918877,0.0604619,3491.5,3490.8,0.41777]
[1735135919076,0.0604619,3491.5,3490.9,2.86459]
[1735135920224,0.0604619,3491.5,3490.7,0.55]
[1735135920433,0.7867,3491.6,3491.0,0.02864137]
[1735135920929,0.7867,3491.6,3491.2,2.86428]
[1735135921280,0.7867,3491.6,3491.3,2.86422]
[1735135922431,0.7867,3491.6,3491.2,0.02863978]
[1735135922630,0.7867,3491.6,3491.4,2.86413]
[1735135922923,0.7867,3492.1,3491.1,0.64432614]
[1735135923234,0.7867,3492.1,3490.7,4.75013581]
[1735135923235,0.05850742,3492.0,3491.3,2.86418]
[1735135923801,0.05850742,3492.0,3491.4,2.86413]
[1735135925863,1.25734794,3492.0,3491.4,2.86413]
[1735135926123,1.25734794,3492.0,3491.3,0.812]
[1735135926338,1.25734794,3492.0,3491.6,2.86398]
[1735135926497,1.25734794,3492.0,3491.6,3.231578]
[1735135927343,1.25734794,3492.0,3491.6,0.367598]
[1735135927344,0.05850742,3492.0,3491.6,0.367598]
[1735135929443,0.05850742,3492.0,3491.6,3.231598]
[1735135931065,0.05850742,3492.0,3491.9,2.86377]
[1735135931268,0.05850742,3492.0,3491.9,3.1869068]
[1735135931565,1.19884052,3492.2,3492.0,2.86365]
[1735135931770,0.00286,3492.3,3492.0,2.86365]
[1735135932121,0.00286,3492.3,3492.2,2.86352]
[1735135932949,0.00286,3492.3,3492.2,3.41352]
[1735135933150,0.00286,3492.3,3492.2,4.15144768]
[1735135934117,0.00286,3492.3,3492.2,3.60144768]
[1735135935475,0.7572,3492.2,3491.7,1.20013581]
[1735135935668,0.7572,3491.9,3491.7,1.20013581]
[1735135935960,3.62105,3491.8,3491.7,1.20013581]
[1735135936522,0.7572,3491.8,3491.7,1.20013581]
[1735135937549,0.7572,3491.8,3490.8,2.86466]
[1735135937755,0.7572,3491.8,3490.9,0.34299123]
[1735135937978,0.7572,3491.8,3490.7,0.57864102]
[1735135938270,0.75375189,3491.8,3490.6,3.0]
[1735135938421,2.86385,3491.8,3490.5,2.8649]
[1735135938625,1.19884052,3491.9,3490.6,3.0]
[1735135938821,3.4532995,3491.8,3490.3,4.20013581]
[1735135939168,2.86419,3491.4,3490.3,4.20013581]
[1735135940171,2.86419,3491.4,3490.3,4.06520581]
[1735135940537,4.06303052,3491.4,3490.3,2.86507]
[1735135941045,2.86427,3491.3,3490.2,3.0]
[1735135941248,0.87995047,3491.2,3490.4,2.86499]
[1735135941637,0.87995047,3491.2,3490.4,2.89363639]
[1735135942480,0.87995047,3491.2,3490.4,2.86499]
[1735135944471,0.87995047,3491.2,3490.2,0.43291]
[1735135944675,0.87995047,3491.2,3490.3,2.86508]
[1735135946235,0.85627073,3491.1,3490.1,2.86522]
[1735135946542,0.8228,3490.9,3490.1,2.86522]
[1735135946746,0.85627073,3490.9,3490.1,2.86522]
[1735135947065,0.87894641,3490.8,3489.9,2.86536]
[1735135947632,0.87894641,3490.8,3489.9,3.44628262]
[1735135947982,0.87894641,3490.8,3490.0,0.45670419]
[1735135948126,0.87894641,3490.8,3490.3,2.86505]
[1735135948330,0.8228,3490.8,3490.3,2.86505]
[1735135948561,0.05571424,3490.7,3490.3,2.86505]
[1735135948814,0.8228,3490.8,3490.3,2.86505]
[1735135948980,0.05571424,3490.7,3490.3,3.48089034]
[1735135949179,0.8228,3490.8,3490.3,0.61584034]
[1735135949592,0.05571424,3490.7,3490.3,0.61584034]
[1735135949767,0.8228,3490.8,3489.9,2.86535]
[1735135950106,0.87851424,3490.7,3489.9,2.86535]
[1735135950666,0.87851424,3490.7,3490.0,2.86531]
[1735135950907,0.87851424,3490.7,3490.1,2.86524]
[1735135951210,0.87851424,3490.7,3490.4,2.86493]
[1735135951413,0.8228,3490.7,3490.4,2.86493]
[1735135951568,0.05566169,3490.6,3490.4,2.86493]
[1735135951769,0.8228,3490.7,3490.4,2.86493]
[1735135951971,0.05566169,3490.6,3490.4,2.86493]
[1735135952202,0.8228,3490.7,3490.4,2.86493]
[1735135952533,0.05566169,3490.6,3490.2,2.86516]
[1735135952736,0.05566169,3490.6,3490.2,3.151676]
[1735135952900,0.8228,3490.7,3490.2,3.151676]
[1735135953230,0.05566169,3490.6,3490.2,0.286516]
[1735135953432,0.8228,3490.7,3490.3,2.86507]
[1735135953647,0.05566169,3490.6,3490.3,2.86507]
[1735135953807,0.8228,3490.7,3490.3,2.86507]
[1735135954010,0.05566169,3490.6,3490.3,2.86507]
[1735135954207,0.8228,3490.7,3490.3,2.86507]
[1735135954547,0.05566169,3490.6,3490.3,3.151577]
[1735135954919,0.8228,3490.7,3490.3,3.151577]
[1735135957158,0.8228,3490.7,3489.8,3.0]
[1735135957328,0.8228,3490.7,3489.7,4.3771384]
[1735135957524,0.8228,3490.7,3489.7,4.40578838]
[1735135957724,0.8228,3490.7,3490.1,2.86522]
[1735135957941,0.8228,3490.7,3490.4,2.86497]
[1735135958114,0.8228,3490.7,3490.4,3.154332]
[1735135958454,0.8228,3490.7,3490.4,0.289362]
[1735135958661,0.7997,3491.3,3490.5,2.86491]
[1735135958840,0.05367236,3491.2,3490.5,2.86491]
[1735135960544,0.05367236,3491.2,3490.3,2.86501]
[1735135960545,0.7997,3491.1,3490.3,2.86501]
[1735135960968,0.05362008,3491.0,3490.3,2.86501]
[1735135961880,0.7997,3490.9,3489.7,4.3596384]
[1735135962093,0.7997,3490.6,3489.5,1.20013581]
[1735135962249,0.7997,3490.4,3489.5,1.20013581]
[1735135962455,0.7997,3490.2,3489.5,1.20013581]
[1735135962781,0.7997,3490.2,3489.5,4.06585581]
[1735135962949,0.83317073,3490.2,3489.5,1.20013581]
[1735135963275,0.7997,3490.0,3489.3,2.86589]
[1735135963632,0.05346805,3489.9,3489.3,2.86589]
[1735135963883,0.7997,3490.0,3489.1,0.55]
[1735135964380,0.05312892,3489.9,3489.3,2.86583]
[1735135964586,0.05312892,3489.9,3489.3,3.55094962]
[1735135964782,0.05312892,3489.9,3489.0,3.43534617]
[1735135964783,0.7997,3489.8,3489.0,3.43534617]
[1735135965285,0.03347073,3489.7,3489.0,3.43534617]
[1735135965582,0.7997,3489.8,3489.1,2.86606]
[1735135965934,0.05312892,3489.7,3489.1,2.86606]
[1735135967303,0.05312892,3489.7,3489.1,2.89471763]
[1735135967460,0.05312892,3489.7,3489.1,3.18418939]
[1735135968021,0.05312892,3489.7,3489.1,0.31812939]
[1735135968189,0.05312892,3489.7,3489.3,2.86582]
[1735135968390,0.7997,3489.8,3489.3,2.86582]
[1735135968755,0.05289495,3489.7,3489.3,2.86582]
[1735135968961,0.05289495,3489.7,3489.4,0.31839494]
[1735135969198,0.7997,3489.8,3489.4,0.31839494]
[1735135969609,0.05289495,3489.7,3489.4,0.31839494]
[1735135969903,0.7997,3489.8,3489.4,0.31839494]
[1735135970405,0.05289495,3489.7,3489.4,0.31839494]
[1735135970611,0.7997,3489.8,3489.4,0.31839494]
[1735135970771,0.05289495,3489.7,3489.4,0.31839494]
[1735135971107,0.7997,3489.8,3489.4,0.31839494]
[1735135971314,0.7997,3489.8,3489.5,3.18416149]
[1735135971479,0.05289495,3489.7,3489.5,3.18416149]